[Event "Israel National League 2024"]
[Site "Israel"]
[Date "2024.03.08"]
[Round "11.18"]
[White "Uritsky, Yonathan"]
[Black "Lahav, Michal"]
[Result "1-0"]
[ECO "A12"]
[WhiteElo "2097"]
[BlackElo "2205"]
[Annotator "RC"]
[PlyCount "75"]
[EventDate "2024.01.07"]
[EventType "team-tourn"]
[EventCountry "ISR"]
[SourceTitle "playchess.com"]
[Source "ChessBase"]
[SourceQuality "1"]
[TimeControl "40/5400+30:1800+30"]

1. Nf3 {[%emt 0:01:01]} Nf6 {[%emt 0:00:10]} 2. g3 {[%emt 0:00:06]} d5 {[%emt 0:00:11]} 3. Bg2 {[%emt 0:00:08]} Bg4 {[%emt 0:01:07]} 4. O-O {[%emt 0:01:08]} e6 {[%emt 0:00:46]} 5. b3 {[%emt 0:03:32]} Be7 {[%emt 0:01:11]} 6. Bb2 {[%emt 0:00:23]} O-O {[%emt 0:01:16]} 7. c4 {[%emt 0:01:02]} c6 {[%emt 0:02:05]} 8. d3 {[%emt 0:00:44]} Nbd7 {[%emt 0:01:55]} 9. Qc2 {[%emt 0:01:06]} Re8 {[%emt 0:06:46]} 10. Nc3 {[%emt 0:06:09]} Bf8 {[%emt 0:08:01]} 11. e4 {[%emt 0:06:21]} dxe4 {[%emt 0:02:57]} 12. dxe4 {[%emt 0:04:59]} e5 {[%emt 0:01:11]} 13. h3 {[%emt 0:06:49]} Bh5 {[%emt 0:09:49]} 14. Rad1 {[%emt 0:02:34]} Qc7 {[%emt 0:11:50]} 15. Ne2 {[%emt 0:05:02]} Bg6 {[%emt 0:21:04]} 16. Nh4 {[%emt 0:01:43]} Nc5 {[%emt 0:03:44]} 17. Nf5 {[%emt 0:08:21]} Rad8 {[%emt 0:05:55]} 18. g4 {[%emt 0:00:31]} Ne6 {[%emt 0:01:44]} 19. Qc3 {[%emt 0:01:37]} Nd7 {[%emt 0:03:38]} 20. Qg3 {[%emt 0:04:36]} f6 {[%emt 0:01:16]} 21. h4 {[%emt 0:01:27]} Nf4 {[%emt 0:09:04]} 22. Qf3 {[%emt 0:07:38]} Nc5 {[%emt 0:04:05]} 23. Bc1 {[%emt 0:00:01]} Nxe2+ {[%emt 0:01:20]} 24. Qxe2 {[%emt 0:00:01]} Ne6 {[%emt 0:00:02]} 25. Bh3 {[%emt 0:06:06]} Nd4 {[%emt 0:00:47]} 26. Nxd4 {[%emt 0:02:09]} exd4 {[%emt 0:00:06]} 27. Bg2 {[%emt 0:00:03]} Qe5 {[%emt 0:01:25]} 28. f4 {[%emt 0:01:28]} Qa5 {[%emt 0:00:06]} 29. h5 {[%emt 0:02:49]} Bf7 {[%emt 0:00:10]} 30. Rd3 {[%emt 0:00:02]} Rd7 {[%emt 0:01:16]} 31. Kh1 {[%emt 0:00:49]} Bc5 {[%emt 0:00:29]} 32. g5 {[%emt 0:00:39]} fxg5 {[%emt 0:00:27]} 33. fxg5 {[%emt 0:00:01]} Be7 {[%emt 0:00:26]} 34. Bh3 {[%emt 0:02:25]} Rdd8 {[%emt 0:00:11]} 35. g6 {[%emt 0:00:40]} hxg6 {[%emt 0:00:03]} 36. hxg6 {[%emt 0:00:03]} Bxc4 {[%emt 0:01:23]} 37. bxc4 {[%emt 0:00:02]} Bg5 {[%emt 0:00:15]} 38. Qh5 {[%emt 0:00:11]} 1-0

[Event "Israel National League 2024"]
[Site "Israel"]
[Date "2024.03.08"]
[Round "11.19"]
[White "Rechlis, Gad"]
[Black "Sarana, Alexey"]
[Result "0-1"]
[ECO "A09"]
[WhiteElo "2473"]
[BlackElo "2695"]
[Annotator "TA"]
[PlyCount "94"]
[EventDate "2024.01.07"]
[EventType "team-tourn"]
[EventCountry "ISR"]
[SourceTitle "playchess.com"]
[Source "ChessBase"]
[SourceQuality "1"]
[TimeControl "40/5400+30:1800+30"]

{[%evp 9,94,-4,13,0,0,0,24,4,3,11,2,-19,-18,-26,-16,-35,16,0,16,0,20,-3,18,29,21,38,35,9,57,41,63,24,74,87,83,-141,-123,-381,-370,-377,-384,-383,-397,-393,-352,-390,-391,-376,-381,-399,-356,-374,-378,-369,-371,-368,-372,-382,-399,-429,-431,-406,-395,-403,-395,-385,-404,-511,-512,-516,-498,-544,-541,-537,-540,-806,-796,-756,-752,-1589,-1573,-1262,-1164,-3122,-2031,-2445,-2106]} 1. Nf3 {[%emt 0:14:35]} d5 {[%emt 0:00:10]} 2. g3 {[%emt 0:00:22]} g6 {[%emt 0:00:04]} 3. c4 {[%emt 0:12:29]} dxc4 {[%emt 0:02:17]} 4. Na3 {[%emt 0:00:19]} Bg7 {[%emt 0:02:19]} 5. Nxc4 {[%emt 0:00:09]} Be6 {[%emt 0:00:20]} 6. Qc2 {[%emt 0:16:50]} c5 {[%emt 0:01:10]} 7. Ne3 {[%emt 0:00:46]} Na6 {[%emt 0:19:42]} 8. Ng5 {[%emt 0:08:13] Black should prevent Nxe6. White has an edge.} Bc8 {[%emt 0:01:15]} 9. Qa4+ {[%emt 0:02:54]} Qd7 {[%emt 0:02:27]} 10. Qb3 {[%emt 0:09:01]} e6 {[%emt 0:01:29]} 11. Bg2 {[%emt 0:02:23]} Ne7 {[%emt 0:00:30]} 12. d3 {[%emt 0:01:21]} Nc6 {[%emt 0:00:40]} ({Better is} 12... Rb8 $15) 13. Qa4 $11 {[%emt 0:06:49]} Nd8 {[%emt 0:20:33]} 14. Qh4 {[%emt 0:14:49]} (14. Qxd7+ {simplifies} Bxd7 15. h4 Rb8 16. Nf3) 14... Qe7 {[%emt 0:11:25]} 15. Nc4 {[%emt 0:00:12][%cal Oc1d2]} (15. Nxh7 $2 Qxh4 16. gxh4 Rxh7 $19) 15... f6 {[%emt 0:00:56]} 16. Ne4 {[%emt 0:00:24]} Nf7 {[%emt 0:00:06] Inhibits Ned6+.} 17. Bd2 {[%emt 0:01:30]} O-O {[%emt 0:11:08]} 18. Bc3 {[%emt 0:00:09]} g5 {[%emt 0:00:08]} (18... Nh6 $11) 19. Qh5 $14 {[%emt 0:00:12] Strongly threatening g4.} f5 {[%emt 0:00:07]} 20. h4 {[%emt 0:00:42]} g4 {[%emt 0:02:53]} (20... fxe4 $2 {is the wrong capture.} 21. Bxe4 Bxc3+ 22. bxc3 $18) (20... Bxc3+ $1 $11 21. bxc3 (21. Nxc3 g4 $11) 21... g4 (21... fxe4 $2 22. Bxe4 Nh8 23. hxg5 $18)) 21. Bxg7 $16 {[%emt 0:03:29]} Kxg7 {[%emt 0:01:02]} 22. Nc3 $2 {[%emt 0:00:11]} (22. Ng5 $16 {keeps the pressure on.} h6 23. Nxf7 Qxf7 24. Qxf7+ Rxf7 25. f3) 22... Nc7 $17 {[%emt 0:02:53]} 23. e4 $2 {[%emt 0:02:41][%mdl 8192] [#] This costs White the game.} (23. Ne3 $17 {keeps fighting.}) 23... Ne8 $1 $19 {[%emt 0:00:30]} 24. e5 {[%emt 0:00:36][%cal Oc3e4] Repels Nf6} Kg8 {[%emt 0:00:35] ...Ng7 would now be deadly.} 25. Ne4 {[%emt 0:01:10]} Ng7 $1 {[%emt 0:00:27]} (25... fxe4 26. Bxe4 Nd8 27. Rc1 $17) 26. Nf6+ {[%emt 0:00:33] [#]} Qxf6 $3 {[%emt 0:00:04][%mdl 512]} 27. Qxh7+ {[%emt 0:00:17]} Kxh7 {[%emt 0:00:02]} 28. exf6 {[%emt 0:00:01]} Nh5 {[%emt 0:00:11][%cal Oa8b8]} 29. Rc1 {[%emt 0:00:55]} Nxf6 {[%emt 0:00:22]} 30. Ne3 {[%emt 0:00:35]} Bd7 {[%emt 0:00:27]} 31. Rxc5 {[%emt 0:00:27]} Rac8 {[%emt 0:00:05] Prevents Rc7.} 32. Ra5 {[%emt 0:00:28]} Bc6 {[%emt 0:00:05]} 33. Bxc6 {[%emt 0:00:16]} Rxc6 {[%emt 0:00:01]} ({Less strong is} 33... bxc6 34. Rxa7 Kg6 35. Re7 $19) 34. Rxa7 {[%emt 0:00:06]} Rc1+ {[%emt 0:00:30]} 35. Nd1 {[%emt 0:00:02]} Nd6 {[%emt 0:00:21]} 36. O-O {[%emt 0:00:46]} Nd5 {[%emt 0:00:04]} 37. Ne3 {[%emt 0:01:36]} Rxf1+ {[%emt 0:00:07]} 38. Nxf1 {[%emt 0:00:18]} Rc8 {[%emt 0:00:03] Black is clearly winning.} 39. Nd2 {[%emt 0:00:11]} Rc1+ {[%emt 0:01:36]} 40. Kg2 {[%emt 0:00:01] [#]} Ne3+ {[%emt 0:00:23][%mdl 512]} 41. fxe3 {[%emt 0:31:26][%cal Od2c4][%mdl 4096] Endgame. And now Nc4! would win. KRN-KRN} Rc2 {[%emt 0:30:04][%csl LRb2,LRd2]} 42. e4 {[%emt 0:00:40]} Rxd2+ {[%emt 0:00:06]} 43. Kf1 {[%emt 0:00:17]} Rxd3 {[%emt 0:00:24]} 44. e5 {[%emt 0:00:14]} Ne4 {[%emt 0:00:03]} 45. Rxb7+ {[%emt 0:00:12]} Kg6 {[%emt 0:00:03]} 46. Re7 {[%emt 0:00:49]} Nxg3+ {[%emt 0:00:04]} 47. Ke1 {[%emt 0:00:34]} f4 {[%emt 0:00:11] Weighted Error Value: White=0.57/Black=0.08 (flawless) .  Loses game:     	White=1     	---        Mistake:       	White=1     	Black=3      Inaccurate:     	White=3     	---        OK:         	White=15    	Black=17     Best:        	White=5     	Black=3      Strong:       	---       	Black=2      Brilliant:      	---       	Black=1} 0-1

[Event "Israel National League 2024"]
[Site "Israel"]
[Date "2024.03.08"]
[Round "11.20"]
[White "Zanan, Evgeny"]
[Black "Zoler, Dan"]
[Result "1/2-1/2"]
[ECO "B81"]
[WhiteElo "2487"]
[BlackElo "2460"]
[Annotator "TA"]
[PlyCount "159"]
[EventDate "2024.01.07"]
[EventType "team-tourn"]
[EventCountry "ISR"]
[SourceTitle "playchess.com"]
[Source "ChessBase"]
[SourceQuality "1"]
[TimeControl "40/5400+30:1800+30"]

{[%evp 85,159,27,27,8,8,8,8,8,8,0,0,0,0,0,0,0,0,0,0,0,0,0,0,0,0,0,0,0,0,0,0,0,8,8,8,8,8,0,0,0,0,0,0,0,0,0,0,0,0,0,0,0,8,0,0,0,0,0,0,0,0,0,0,0,0,0,0,0,0,0,0,0,0,0,0,0]} 1. e4 {[%emt 0:10:11]} c5 {[%emt 0:04:12]} 2. Nf3 {[%emt 0:01:54]} d6 {[%emt 0:05:20]} 3. d4 {[%emt 0:00:14]} cxd4 {[%emt 0:00:08]} 4. Nxd4 {[%emt 0:00:05]} Nf6 {[%emt 0:00:04]} 5. Nc3 {[%emt 0:00:07]} a6 {[%emt 0:00:04]} 6. h3 {[%emt 0:00:14]} e6 {[%emt 0:02:31]} 7. g4 {[%emt 0:04:31]} h6 {[%emt 0:00:04]} 8. Bg2 {[%emt 0:00:36]} Be7 {[%emt 0:00:10] B81: Sicilian Scheveningen: Keres Attack.} 9. h4 {[%emt 0:00:56]} Nfd7 {[%emt 0:06:13]} 10. g5 {[%emt 0:02:30]} hxg5 {[%emt 0:09:48]} 11. hxg5 {[%emt 0:04:42]} Rxh1+ {[%emt 0:00:10]} 12. Bxh1 {[%emt 0:00:04]} Nf8 $146 {[%emt 0:02:02]} ({Predecessor:} 12... g6 13. Qg4 Nc6 14. Nxc6 bxc6 15. Be3 Ne5 16. Qh4 Nc4 17. Qh8+ Bf8 18. Bf4 e5 {½-½ Makridis,D (2328)-Vasquez Schroder,R (2475) Titled Tuesday intern op 23rd Jan Late blitz 2024 (8)}) 13. f4 {[%emt 0:05:07]} Nc6 {[%emt 0:08:41]} 14. Be3 {[%emt 0:20:23]} Bd7 {[%emt 0:01:54]} 15. Nb3 {[%emt 0:07:28]} b5 {[%emt 0:04:02]} 16. Qd2 {[%emt 0:05:32]} Rc8 {[%emt 0:11:27]} 17. O-O-O {[%emt 0:01:27]} Qc7 {[%emt 0:11:28]} 18. Kb1 {[%emt 0:01:59]} b4 {[%emt 0:05:34]} 19. Ne2 {[%emt 0:04:33]} a5 {[%emt 0:02:08]} 20. Nbd4 {[%emt 0:00:59]} Nxd4 {[%emt 0:01:27]} 21. Nxd4 {[%emt 0:01:24]} a4 {[%emt 0:02:01]} 22. Bf3 {[%emt 0:01:56]} a3 {[%emt 0:05:22]} 23. b3 {[%emt 0:04:17]} Ng6 {[%emt 0:01:22]} 24. Bh5 {[%emt 0:04:55]} e5 {[%emt 0:03:56]} 25. fxe5 {[%emt 0:07:58]} dxe5 {[%emt 0:00:13]} 26. Nf5 {[%emt 0:00:27]} Bf8 {[%emt 0:01:28]} 27. Be2 {[%emt 0:01:34]} Bc6 {[%emt 0:03:03]} 28. Bc4 {[%emt 0:01:05]} Qb7 {[%emt 0:04:22]} 29. Qd3 {[%emt 0:02:19]} Qc7 {[%emt 0:01:25]} 30. Bd5 {[%emt 0:04:02]} Qd7 {[%emt 0:02:51]} 31. Qa6 {[%emt 0:01:56]} Bxd5 {[%emt 0:00:57]} 32. Rxd5 {[%emt 0:00:05]} Qc6 {[%emt 0:00:13]} 33. Qd3 {[%emt 0:00:48]} Qc3 {[%emt 0:01:11]} 34. Bc1 {[%emt 0:00:37]} Qxd3 {[%emt 0:00:14]} 35. cxd3 {[%emt 0:00:25]} Rd8 {[%emt 0:00:38]} 36. Rxd8+ {[%emt 0:00:16]} Kxd8 {[%emt 0:00:03]} 37. Be3 {[%emt 0:00:05]} Kd7 {[%emt 0:01:08]} 38. d4 {[%emt 0:00:44]} exd4 {[%emt 0:00:26]} 39. Bxd4 {[%emt 0:00:02]} Nf4 {[%emt 0:00:05]} 40. Nxg7 {[%emt 0:01:05]} Nh3 {[%emt 0:00:57]} 41. Kc2 {[%emt 0:02:37]} Nxg5 {[%emt 0:07:03]} 42. Kd3 {[%emt 0:02:44]} Kc6 {[%emt 0:09:10]} 43. Nf5 {[%emt 0:04:11]} Kb5 {[%emt 0:02:09]} 44. Bf6 {[%emt 0:00:49]} Ne6 {[%emt 0:01:49]} 45. Nd4+ {[%emt 0:01:33]} Kc5 {[%emt 0:03:05]} 46. Nf3 {[%emt 0:03:38]} Kb5 {[%emt 0:01:49]} 47. Bd4 {[%emt 0:05:40]} Bh6 {[%emt 0:05:37]} 48. Be3 {[%emt 0:04:41]} Bxe3 {[%emt 0:02:05]} 49. Kxe3 {[%emt 0:00:02]} Nc5 {[%emt 0:00:29]} 50. Nd4+ {[%emt 0:00:19]} Kb6 {[%emt 0:00:05]} 51. Nc2 {[%emt 0:00:08]} Kb5 {[%emt 0:00:07]} 52. Kd4 {[%emt 0:06:04]} Ne6+ {[%emt 0:00:04]} 53. Ke5 {[%emt 0:00:04]} Kc5 {[%emt 0:00:38]} 54. Ne1 {[%emt 0:00:32]} Kb5 {[%emt 0:00:55]} 55. Nd3 {[%emt 0:01:30]} Nc5 {[%emt 0:00:15]} 56. Nc1 {[%emt 0:01:34]} Kc6 {[%emt 0:01:16]} 57. Kd4 {[%emt 0:00:23]} Kb5 {[%emt 0:00:03]} 58. Kd5 {[%emt 0:00:26]} Ne6 {[%emt 0:02:39]} 59. Ne2 {[%emt 0:01:10]} Nc7+ {[%emt 0:00:12]} 60. Kd6 {[%emt 0:01:03]} Ne6 {[%emt 0:00:10]} 61. Kd5 {[%emt 0:01:33]} Nc7+ {[%emt 0:00:11]} 62. Ke5 {[%emt 0:00:16]} Kc5 {[%emt 0:00:59]} 63. Nf4 {[%emt 0:00:52]} f6+ {[%emt 0:00:50]} 64. Kxf6 {[%emt 0:00:02]} Kd4 {[%emt 0:00:07]} 65. Kf5 {[%emt 0:01:00]} Ne8 {[%emt 0:01:18]} 66. e5 {[%emt 0:00:00]} Ng7+ {[%emt 0:00:27]} 67. Kf6 {[%emt 0:00:17]} Ne8+ {[%emt 0:00:04]} 68. Ke6 {[%emt 0:01:07]} Ng7+ $1 {[%emt 0:00:52]} 69. Kd6 {[%emt 0:00:39]} Nf5+ {[%emt 0:00:13]} 70. Kc6 {[%emt 0:00:30]} Kxe5 {[%emt 0:00:17]} 71. Nd3+ {[%emt 0:00:09]} Kd4 {[%emt 0:00:05]} 72. Nxb4 {[%emt 0:00:04]} Kc3 {[%emt 0:00:06]} 73. Kc5 {[%emt 0:00:51]} Kb2 {[%emt 0:00:45]} 74. Kc4 {[%emt 0:00:27]} Nd6+ {[%emt 0:00:27]} 75. Kd3 {[%emt 0:00:50]} Nb5 {[%emt 0:01:40]} 76. Kc4 {[%emt 0:00:38]} Nd6+ {[%emt 0:00:12]} 77. Kd3 {[%emt 0:00:29]} Nb5 {[%emt 0:00:06]} 78. Nc6 {[%emt 0:00:31]} Nc3 {[%emt 0:00:59]} (78... Kxa2 $5 79. Kc2 $8 Ka1 $11) 79. Nb4 {[%emt 0:00:32]} Nb5 {[%emt 0:00:23]} 80. Kc4 {[%emt 0:00:28]} 1/2-1/2

[Event "Israel National League 2024"]
[Site "Israel"]
[Date "2024.03.08"]
[Round "11.21"]
[White "Manor, Ilan"]
[Black "Bronstein, Or"]
[Result "1/2-1/2"]
[ECO "A13"]
[WhiteElo "2469"]
[BlackElo "2441"]
[Annotator "TA"]
[PlyCount "144"]
[EventDate "2024.01.07"]
[EventType "team-tourn"]
[EventCountry "ISR"]
[SourceTitle "playchess.com"]
[Source "ChessBase"]
[SourceQuality "1"]
[TimeControl "40/5400+30:1800+30"]

{[%evp 42,144,25,44,31,26,31,32,123,117,119,120,132,115,132,125,142,139,155,134,127,131,128,131,133,130,177,190,188,172,175,157,156,153,154,151,172,153,151,139,139,139,139,0,139,139,140,139,139,139,139,0,139,139,139,139,139,139,139,139,139,139,139,117,117,117,139,116,116,116,116,116,116,116,116,116,116,0,116,116,116,0,116,0,35,35,35,0,0,0,0,0,0,0,15,0,0,0,0,0,0,0,0,0,6]} 1. Nf3 {[%emt 0:14:10]} d5 {[%emt 0:02:36]} 2. c4 {[%emt 0:00:04]} e6 {[%emt 0:03:26]} 3. g3 {[%emt 0:00:51]} Nf6 {[%emt 0:03:24]} 4. Bg2 {[%emt 0:00:04]} d4 {[%emt 0:00:07]} 5. b4 {[%emt 0:02:20]} Bxb4 {[%emt 0:09:20]} 6. Qa4+ {[%emt 0:02:32] A13: English Opening: 1...e6.} Nc6 {[%emt 0:00:59]} 7. Ne5 {[%emt 0:00:25]} Rb8 {[%emt 0:02:11]} 8. Nxc6 {[%emt 0:26:06]} bxc6 {[%emt 0:00:07]} 9. Qxa7 {[%emt 0:00:12]} Rb6 {[%emt 0:06:33]} 10. Qa4 {[%emt 0:02:00]} O-O {[%emt 0:01:56]} 11. O-O {[%emt 0:00:44]} e5 {[%emt 0:06:24]} 12. d3 {[%emt 0:01:56]} h6 $146 {[%emt 0:23:11]} ({Predecessor:} 12... Bg4 13. Qc2 Qe7 14. h3 Bh5 15. Bg5 Rfb8 16. g4 Bg6 17. Nd2 Bxd2 18. Qxd2 h6 19. Bxf6 Qxf6 {½-½ Karjakin,S (2771)-Anand,V (2785) Wch Rapid Dubai 2014 (10)}) 13. a3 {[%emt 0:18:35]} Bc5 {[%emt 0:00:46]} 14. Nd2 {[%emt 0:01:41]} Bg4 {[%emt 0:00:15]} 15. Nb3 {[%emt 0:04:11]} Be7 {[%emt 0:07:03]} 16. c5 {[%emt 0:12:25]} Rb8 {[%emt 0:02:39]} 17. Re1 {[%emt 0:00:07]} Ra8 {[%emt 0:05:06]} 18. Qxc6 {[%emt 0:01:18]} Ra7 {[%emt 0:08:55]} 19. Qb5 {[%emt 0:02:06]} Qb8 {[%emt 0:06:17]} 20. Qb4 {[%emt 0:01:13]} Ra6 {[%emt 0:02:40]} 21. Na5 {[%emt 0:03:05]} Bd7 {[%emt 0:05:20]} 22. Qxb8 {[%emt 0:02:33]} Rxb8 {[%emt 0:00:01]} 23. Nc4 {[%emt 0:00:01]} Bxc5 {[%emt 0:01:49]} 24. Nxe5 {[%emt 0:00:06]} Ba4 {[%emt 0:00:05]} ({Better is} 24... Be6 $14) 25. Bd2 $16 {[%emt 0:01:00]} Re8 {[%emt 0:01:00]} 26. Nc4 {[%emt 0:00:46]} Bb3 {[%emt 0:00:31]} 27. Na5 {[%emt 0:01:39]} Bd5 {[%emt 0:00:16]} 28. a4 {[%emt 0:00:52]} Bb6 {[%emt 0:00:40]} 29. Bxd5 {[%emt 0:01:00]} Bxa5 {[%emt 0:00:23]} 30. Bb7 {[%emt 0:00:40]} Ra7 {[%emt 0:00:54]} 31. Bxa5 {[%emt 0:00:07]} Rxb7 {[%emt 0:00:26]} 32. Rac1 {[%emt 0:00:29]} Ra7 {[%emt 0:00:26]} 33. Rc5 {[%emt 0:00:41]} Nd7 {[%emt 0:00:26]} (33... Re7 $16 {might work better.} 34. Kf1 Nd7) 34. Rxc7 $18 {[%emt 0:00:12]} Rea8 {[%emt 0:00:44]} 35. Rec1 {[%emt 0:00:31]} Rxc7 {[%emt 0:00:13]} 36. Rxc7 {[%emt 0:00:04]} Rxa5 {[%emt 0:00:37]} 37. Rxd7 {[%emt 0:00:04]} Rxa4 {[%emt 0:00:05]} 38. Kg2 {[%emt 0:00:32]} g6 {[%emt 0:00:50]} 39. Kf3 {[%emt 0:00:51]} Kg7 {[%emt 0:00:06]} 40. h4 {[%emt 0:00:36]} h5 {[%emt 0:00:42]} 41. Re7 {[%emt 0:30:59]} Ra8 {[%emt 0:08:18]} 42. Rd7 {[%emt 0:00:00]} Ra4 {[%emt 0:00:06]} 43. Kf4 {[%emt 0:00:00]} Kf6 {[%emt 0:02:00]} 44. Rd6+ {[%emt 0:00:00]} Ke7 {[%emt 0:04:28]} 45. Rd5 {[%emt 0:00:00]} Kf6 {[%emt 0:02:47]} 46. Rd6+ {[%emt 0:00:00]} Ke7 {[%emt 0:00:16]} 47. Rc6 {[%emt 0:00:00]} Ra2 {[%emt 0:01:09]} 48. Kf3 {[%emt 0:00:00]} Ra5 {[%emt 0:01:44]} 49. e3 {[%emt 0:00:00]} Rf5+ {[%emt 0:01:30]} 50. Ke2 {[%emt 0:00:00]} dxe3 {[%emt 0:00:33]} 51. fxe3 {[%emt 0:00:00]} ({Don't do} 51. Kxe3 Re5+ 52. Kf3 Rf5+ 53. Ke2 Re5+ 54. Kf1 Rd5 $14) 51... Ra5 {[%emt 0:02:12]} 52. d4 {[%emt 0:00:00]} Ra1 {[%emt 0:00:53]} 53. Rc3 {[%emt 0:00:00]} Kd6 {[%emt 0:00:59]} 54. Rc5 {[%emt 0:00:00]} Rg1 {[%emt 0:02:06]} 55. Kf2 {[%emt 0:00:00]} Ra1 {[%emt 0:00:16]} 56. Rb5 {[%emt 0:00:00]} Kc6 {[%emt 0:00:35]} 57. Rg5 {[%emt 0:00:00]} Kd6 {[%emt 0:00:12]} 58. Re5 {[%emt 0:00:00]} Kd7 {[%emt 0:02:12]} 59. Rg5 {[%emt 0:02:30]} Kd6 $1 {[%emt 0:00:07]} 60. Kf3 {[%emt 0:00:05]} Rf1+ {[%emt 0:01:02] [#]} 61. Ke4 {[%emt 0:00:29]} (61. Kg2 $1 $16 {[%cal Rg2f1]} Ra1 62. g4) 61... Rg1 {[%emt 0:00:11] [#]} (61... Rf2 $11) 62. Kd3 {[%emt 0:01:46]} (62. Rd5+ $1 $16 Kc6 63. Rc5+ Kd7 64. Kf3) 62... Rd1+ {[%emt 0:00:16]} 63. Kc2 {[%emt 0:00:30]} Rf1 {[%emt 0:01:17]} 64. g4 {[%emt 0:00:45]} hxg4 {[%emt 0:00:35]} 65. Rxg4 {[%emt 0:00:05]} Rh1 {[%emt 0:00:28]} 66. Kd3 {[%emt 0:00:25]} Rh2 {[%emt 0:02:08]} 67. e4 {[%emt 0:00:32]} Rh1 {[%emt 0:00:13]} 68. Ke3 {[%emt 0:01:03]} Ke6 {[%emt 0:01:54]} 69. Kf4 {[%emt 0:01:56]} Rf1+ {[%emt 0:01:27]} 70. Kg5 {[%emt 0:05:36]} f5 $1 {[%emt 0:01:46]} 71. exf5+ {[%emt 0:00:00]} gxf5 {[%emt 0:00:01]} 72. Rg2 {[%emt 0:00:00]} f4 {[%emt 0:00:16]} 1/2-1/2

[Event "Israel National League 2024"]
[Site "Israel"]
[Date "2024.03.08"]
[Round "11.22"]
[White "Oratovsky, Michael"]
[Black "Zifroni, Dov"]
[Result "1/2-1/2"]
[ECO "C24"]
[WhiteElo "2412"]
[BlackElo "2462"]
[Annotator "RC"]
[PlyCount "102"]
[EventDate "2024.01.07"]
[EventType "team-tourn"]
[EventCountry "ISR"]
[SourceTitle "playchess.com"]
[Source "ChessBase"]
[SourceQuality "1"]
[TimeControl "40/5400+30:1800+30"]

1. e4 {[%emt 0:12:39]} e5 {[%emt 0:02:31]} 2. Bc4 {[%emt 0:03:07]} Nf6 {[%emt 0:00:15]} 3. d3 {[%emt 0:00:06]} c6 {[%emt 0:05:06]} 4. Nf3 {[%emt 0:01:11]} d5 {[%emt 0:00:06]} 5. Bb3 {[%emt 0:00:08]} a5 {[%emt 0:00:03]} 6. a4 {[%emt 0:01:54]} Bb4+ {[%emt 0:00:31]} 7. c3 {[%emt 0:01:03]} Bd6 {[%emt 0:00:05]} 8. exd5 {[%emt 0:00:25]} cxd5 {[%emt 0:00:15]} 9. Bg5 {[%emt 0:01:31]} Be6 {[%emt 0:00:10]} 10. Na3 {[%emt 0:00:32]} Nc6 {[%emt 0:01:22]} 11. Nb5 {[%emt 0:06:12]} Bb8 {[%emt 0:17:36]} 12. d4 {[%emt 0:05:37]} e4 {[%emt 0:00:19]} 13. Nd2 {[%emt 0:00:07]} h6 {[%emt 0:06:48]} 14. Bh4 {[%emt 0:02:18]} O-O {[%emt 0:16:44]} 15. Nf1 {[%emt 0:12:45]} Na7 {[%emt 0:11:28]} 16. Na3 {[%emt 0:15:17]} Bf4 {[%emt 0:16:44]} 17. Bxf6 {[%emt 0:11:57]} Qxf6 {[%emt 0:00:08]} 18. g3 {[%emt 0:00:08]} Bd6 {[%emt 0:01:59]} 19. Ne3 {[%emt 0:05:47]} Rad8 {[%emt 0:02:45]} 20. O-O {[%emt 0:02:58]} Qg5 {[%emt 0:09:53]} 21. f4 {[%emt 0:08:34]} exf3 {[%emt 0:00:05]} 22. Qxf3 {[%emt 0:00:05]} Bb8 {[%emt 0:02:07]} 23. Nac2 {[%emt 0:03:12]} Nc8 {[%emt 0:01:54]} 24. Nf5 {[%emt 0:01:39]} g6 {[%emt 0:01:01]} 25. Nfe3 {[%emt 0:00:55]} Kg7 {[%emt 0:00:55]} 26. Kg2 {[%emt 0:00:19]} Nb6 {[%emt 0:00:27]} 27. h4 {[%emt 0:01:28]} Qe7 {[%emt 0:00:05]} 28. Rae1 {[%emt 0:00:08]} Qd7 {[%emt 0:00:30]} 29. g4 {[%emt 0:00:54]} Nxa4 {[%emt 0:00:25]} 30. Qf6+ {[%emt 0:01:09]} Kh7 {[%emt 0:00:29]} 31. Nf5 {[%emt 0:01:09]} gxf5 {[%emt 0:00:36]} 32. g5 {[%emt 0:00:27]} Nxb2 {[%emt 0:01:14]} 33. Rg1 {[%emt 0:00:43]} Nd3 {[%emt 0:00:47]} 34. Re3 {[%emt 0:00:30]} Nf4+ {[%emt 0:00:29]} 35. Kf2 {[%emt 0:00:14]} Ng6 {[%emt 0:01:18]} 36. h5 {[%emt 0:00:14]} Rde8 {[%emt 0:00:39]} 37. gxh6 {[%emt 0:00:48]} Rg8 {[%emt 0:00:18]} 38. hxg6+ {[%emt 0:00:30]} fxg6 {[%emt 0:00:10]} 39. Rge1 {[%emt 0:00:13]} Qc7 {[%emt 0:00:45]} 40. Rxe6 {[%emt 0:00:40]} Qh2+ {[%emt 0:00:20]} 41. Kf3 {[%emt 0:30:52]} Kxh6 {[%emt 0:22:33]} 42. Ne3 {[%emt 0:00:00]} Kh5 {[%emt 0:08:01]} 43. Bxd5 {[%emt 0:00:00]} Bg3 {[%emt 0:00:44]} 44. Rf1 {[%emt 0:00:00]} Rxe6 {[%emt 0:00:29]} 45. Bxe6 {[%emt 0:00:00]} Bf4 {[%emt 0:00:25]} 46. Nd5 {[%emt 0:02:21]} Qg3+ {[%emt 0:00:35]} 47. Ke2 {[%emt 0:00:01]} Qg2+ {[%emt 0:00:19]} 48. Rf2 {[%emt 0:00:04]} Qe4+ {[%emt 0:00:15]} 49. Kf1 {[%emt 0:00:15]} Qh1+ {[%emt 0:00:09]} 50. Ke2 {[%emt 0:00:03]} Qe4+ {[%emt 0:00:05]} 51. Kf1 {[%emt 0:00:02]} Qh1+ {[%emt 0:00:12]} 1/2-1/2